fUSD/lending_fUSD_20240712
["ID","MTS","AMOUNT","RATE_DAILY","PERIOD"]
[331883371,1720815043466,-500.0,0.00013979,2]
[331883372,1720815043476,-4076.66,0.00013979,2]
[331883374,1720815043486,-481.02863248,0.00013979,2]
[331883377,1720815043497,-18.97136752,0.00013979,2]
[331883379,1720815043506,-500.0,0.00013979,2]
[331883381,1720815043516,-500.0,0.00013979,2]
[331883383,1720815043525,-500.0,0.00013979,2]
[331883384,1720815043534,-8469.64810019,0.00013979,2]
[331883387,1720815043544,-17464.30953229,0.0001398,2]
[331883389,1720815043555,-1178.53259526,0.0001398,2]
[331883391,1720815043566,-1340.0,0.0001398,2]
[331883393,1720815043577,-27662.25195561,0.0001398,2]
[331883396,1720815043600,-466.51281727,0.0001398,2]
[331883398,1720815043611,-1594.4435325,0.0001398,2]
[331883401,1720815043628,-1111.83816817,0.0001398,2]
[331883403,1720815043638,-1343.104571,0.0001398,2]
[331883405,1720815043649,-1352.74328221,0.0001398,2]
[331883408,1720815043661,-1180.22303273,0.0001398,2]
[331883410,1720815043672,-927.16234823,0.0001398,2]
[331883442,1720815043968,-305.78334679,0.00013574,2]
[331883444,1720815043978,-4887.22950803,0.0001398,2]
[331883590,1720815045395,-2247.48476948,0.0001398,2]
[331883593,1720815045549,-1879.48386799,0.0001398,2]
[331883760,1720815047107,-2542.4339924,0.0001398,2]
[331883762,1720815047119,-819.8824,0.0001398,2]
[331883795,1720815047423,-453.18560117,0.0001398,2]
[331883797,1720815047434,-727.9915,0.0001398,2]
[331884002,1720815203808,3000.0,0.00026382,120]
[331884003,1720815221917,5388.63012999,0.00011199,2]
[331884005,1720815256243,3627.00819881,0.00011199,2]
[331884006,1720815271214,3086.11017581,0.00011199,2]
[331884007,1720815281346,368.85402183,0.00011199,2]
[331884009,1720815301451,1287.33023709,0.00011199,2]
[331884010,1720815322223,427.69,0.00010514,2]
[331884011,1720815345726,1631.04293426,0.00011199,2]
[331884012,1720815350004,844.6469,0.00011199,2]
[331884013,1720815351438,1216.48344249,0.00011199,2]
[331884014,1720815385475,689.35796756,0.00011199,2]
[331884016,1720815416158,647.71813835,0.00011199,2]
[331884017,1720815429713,524.36809456,0.00011199,2]
[331884018,1720815464133,520.96253011,0.00011199,2]
[331884019,1720815465312,483.68385979,0.00011199,2]
[331884021,1720815511997,218.16420677,0.00011199,2]
[331884022,1720815525863,235.38273328,0.00011199,2]
[331884024,1720815554808,19631.30329052,0.00011199,2]
[331884026,1720815631013,873.23,0.00010959,2]
[331884027,1720815635050,18801.40232907,0.00011199,2]
[331884036,1720815738686,714.61419842,0.00011199,2]
[331884037,1720815748508,23866.19327222,0.00011199,2]
[331884038,1720815752072,5472.64857955,0.00011199,2]
[331884040,1720815794746,319.60079117,0.00011199,7]
[331884041,1720815795164,155.86784285,0.00011199,2]
[331884043,1720815839970,425.83,0.00010315,2]
[331884044,1720815909837,208.77822868,0.00011199,2]
[331884046,1720815921492,5397.32868422,9e-05,2]
[331884047,1720815922625,1368.31980329,0.00010315,2]
[331884048,1720815926230,155.0,0.00010315,2]
[331884050,1720815956173,155.0,0.00010315,2]
[331884051,1720815965782,431.44595972,0.00011199,2]
[331884052,1720815980878,14555.43460796,0.00011199,2]
[331884058,1720816028040,3491.10182243,0.00011199,2]
[331884071,1720816044770,1559.38557531,0.00011199,2]
[331884080,1720816103128,530.85773798,0.00011199,2]
[331884086,1720816149584,245.0,0.00011199,2]
[331884087,1720816150241,174.02504748,0.00011199,2]
[331884088,1720816151449,155.4020911,0.00011199,2]
[331884089,1720816155127,369.18293041,0.00011199,2]
[331884091,1720816178538,23286.60844876,0.00011199,2]
[331884092,1720816189667,157.31887822,0.00011199,2]
[331884093,1720816196316,159.9452446,0.00011199,2]
[331884095,1720816202242,378.18292746,0.00011199,2]
[331884096,1720816230163,155.0,0.00011199,2]
[331884115,1720816232218,-300.0,0.00011799,2]
[331884116,1720816232228,-2577.35004001,0.000118,2]
[331884119,1720816232279,-7598.87473076,0.000118,2]
[331884120,1720816232288,-1084.96795832,0.0001184,2]
[331884121,1720816232297,-257.80184351,0.0001194,2]
[331884122,1720816232307,-3856.42,0.00012036,2]
[331884123,1720816232317,-163.36,0.0001206,2]
[331884124,1720816232327,-13108.21,0.00012068,2]
[331884125,1720816232338,-427.19,0.00012129,2]
[331884126,1720816232347,-150.0,0.00012138,2]
[331884127,1720816232356,-1000.0,0.00012161,2]
[331884128,1720816232365,-250.0,0.00012181,2]
[331884129,1720816232375,-500.0,0.00012205,2]
[331884130,1720816232384,-433.32,0.00012218,2]
[331884131,1720816232394,-2575.21,0.0001225,2]
[331884132,1720816232403,-250.0,0.00012287,2]
[331884133,1720816232412,-150.99,0.00012331,2]
[331884134,1720816232422,-286.36,0.00012348,2]
[331884135,1720816232431,-232.25,0.00012413,2]
[331884136,1720816232441,-278.31377295,0.00012502,2]
[331884137,1720816232450,-336.67547672,0.00012503,2]
[331884138,1720816232459,-425.83,0.00012579,2]
[331884139,1720816232468,-10000.000001,0.0001259,2]
[331884140,1720816232477,-150.0,0.00012892,2]
[331884141,1720816232486,-427.56,0.00012893,2]
[331884142,1720816232495,-9518.62785145,0.00012893,2]
[331884143,1720816232511,-481.36214855,0.00012893,2]
[331884145,1720816232520,-10618.63785145,0.00012893,2]
[331884168,1720816237618,-298.93586434,0.00012893,2]
[331884169,1720816237740,-899.66443038,0.00012893,2]
[331884366,1720816239708,-1581.04185383,0.00012893,2]
[331884368,1720816239718,-420.0,0.00012955,2]
[331884370,1720816239727,-500.0,0.00012981,2]
[331884371,1720816239736,-1250.0,0.00013,2]
[331884373,1720816239745,-2645.23,0.00013,2]
[331884375,1720816239755,-2645.23,0.00013004,2]
[331884377,1720816239764,-2645.23,0.00013007,2]
[331884379,1720816239773,-2645.23,0.00013011,2]
[331884381,1720816239782,-2645.23,0.00013014,2]
[331884383,1720816239795,-2645.23,0.00013017,2]
[331884385,1720816239805,-2645.23,0.00013021,2]
[331884387,1720816239815,-2645.23,0.00013024,2]
[331884389,1720816239824,-2645.23,0.00013028,2]
[331884391,1720816239833,-2645.23,0.00013031,2]
[331884393,1720816239842,-2645.23,0.00013035,2]
[331884395,1720816239852,-2645.23,0.00013038,2]
[331884397,1720816239861,-2645.23,0.00013041,2]
[331884399,1720816239870,-2645.23,0.00013045,2]
[331884401,1720816239880,-2645.23,0.00013048,2]
[331884403,1720816239889,-2645.23,0.00013052,2]
[331884405,1720816239898,-2645.23,0.00013055,2]
[331884407,1720816239907,-2645.23,0.00013059,2]
[331884409,1720816239917,-2645.23,0.00013062,2]
[331884411,1720816239926,-2645.23,0.00013065,2]
[331884412,1720816239935,-250.00562958,0.00013128,2]
[331884414,1720816239945,-3029.1863234,0.00013128,2]
[331884416,1720816239955,-47123.0,0.00013308,2]
[331884418,1720816239964,-248.13765487,0.00013472,2]
[331884420,1720816239973,-163.90445823,0.00013472,2]
[331884422,1720816239982,-544.84128592,0.00013543,2]
[331884424,1720816239992,-431.44595972,0.00013574,2]
[331884426,1720816240001,-520.44202929,0.00013574,2]
[331884428,1720816240011,-305.78334679,0.00013574,2]
[331884430,1720816240020,-173.47,0.00013616,2]
[331884432,1720816240029,-1000.0,0.00013682,2]
[331884434,1720816240038,-219.91,0.00013699,2]
[331884436,1720816240047,-250.0,0.00013699,2]
[331884438,1720816240056,-688.56520297,0.000137,2]
[331884440,1720816240066,-150.0,0.00013707,2]
[331884442,1720816240075,-150.0,0.00013727,2]
[331884444,1720816240084,-301.19357159,0.00013744,2]
[331884446,1720816240093,-150.0,0.00013746,2]
[331884448,1720816240104,-164.34574227,0.00013749,2]
[331884450,1720816240114,-12825.4324,0.0001375,2]
[331884451,1720816240123,-150.0,0.0001377,2]
[331884452,1720816240131,-150.0,0.00013778,2]
[331884453,1720816240141,-150.0,0.00013783,2]
[331884454,1720816240150,-164.34574227,0.00013787,2]
[331884455,1720816240159,-250.27753743,0.0001379,2]
[331884456,1720816240168,-250.27753742,0.0001379,2]
[331884457,1720816240178,-250.27753742,0.0001379,2]
[331884458,1720816240187,-250.27753742,0.0001379,2]
[331884459,1720816240197,-250.27753742,0.0001379,2]
[331884460,1720816240207,-250.27753742,0.0001379,2]
[331884461,1720816240216,-250.27753742,0.0001379,2]
[331884462,1720816240228,-150.0,0.00013794,2]
[331884463,1720816240237,-71784.71792783,0.00013797,2]
[331884464,1720816240246,-241.40649258,0.00013799,2]
[331884465,1720816240255,-241.4064925,0.00013799,2]
[331884466,1720816240264,-241.4064925,0.00013799,2]
[331884467,1720816240273,-241.4064925,0.00013799,2]
[331884468,1720816240282,-241.4064925,0.00013799,2]
[331884469,1720816240292,-241.4064925,0.00013799,2]
[331884470,1720816240301,-241.4064925,0.00013799,2]
[331884471,1720816240310,-500.0,0.00013799,2]
[331884473,1720816240320,-500.0,0.00013799,2]
[331884475,1720816240329,-500.0,0.00013799,2]
[331884477,1720816240338,-500.0,0.00013799,2]
[331884479,1720816240351,-500.0,0.00013799,2]
[331884481,1720816240360,-500.0,0.00013799,2]
[331884483,1720816240369,-500.0,0.00013799,2]
[331884485,1720816240383,-500.0,0.00013799,2]
[331884487,1720816240393,-500.0,0.00013799,2]
[331884489,1720816240402,-600.9,0.00013799,2]
[331884491,1720816240412,-648.57,0.00013799,2]
[331884493,1720816240421,-500.0,0.00013799,2]
[331884495,1720816240430,-500.0,0.00013799,2]
[331884497,1720816240439,-500.0,0.00013799,2]
[331884498,1720816240448,-500.0,0.00013799,2]
[331884500,1720816240458,-500.0,0.00013799,2]
[331884502,1720816240467,-500.0,0.00013799,2]
[331884504,1720816240477,-500.0,0.00013799,2]
[331884506,1720816240486,-500.0,0.00013799,2]
[331884508,1720816240495,-500.0,0.00013799,2]
[331884510,1720816240505,-500.0,0.00013799,2]
[331884512,1720816240514,-374.81011433,0.00013799,2]
[331884514,1720816240523,-500.0,0.00013799,2]
[331884516,1720816240532,-500.0,0.00013799,2]
[331884518,1720816240541,-841.45,0.00013799,2]
[331884520,1720816240550,-500.0,0.00013799,2]
[331884522,1720816240560,-1452.98,0.00013799,2]
[331884524,1720816240569,-904.0,0.00013799,2]
[331884526,1720816240578,-500.0,0.00013799,2]
[331884528,1720816240587,-500.0,0.00013799,2]
[331884530,1720816240601,-1020.38,0.00013799,2]
[331884532,1720816240610,-500.0,0.00013799,2]
[331884534,1720816240618,-527.33,0.00013799,2]
[331884536,1720816240627,-500.0,0.00013799,2]
[331884538,1720816240636,-500.0,0.00013799,2]
[331884540,1720816240645,-1254.68,0.00013799,2]
[331884542,1720816240655,-500.0,0.00013799,2]
[331884544,1720816240663,-500.0,0.00013799,2]
[331884546,1720816240673,-500.0,0.00013799,2]
[331884548,1720816240682,-500.0,0.00013799,2]
[331884550,1720816240691,-500.0,0.00013799,2]
[331884552,1720816240700,-500.0,0.00013799,2]
[331884554,1720816240709,-500.0,0.00013799,2]
[331884556,1720816240718,-577.72,0.00013799,2]
[331884558,1720816240727,-500.0,0.00013799,2]
[331884559,1720816240737,-500.0,0.00013799,2]
[331884561,1720816240746,-525.35,0.00013799,2]
[331884563,1720816240755,-500.0,0.00013799,2]
[331884577,1720816240875,-500.0,0.00013799,2]
[331884579,1720816240885,-500.0,0.00013799,2]
[331884581,1720816240895,-500.0,0.00013799,2]
[331884583,1720816240904,-500.0,0.00013799,2]
[331884585,1720816240914,-40432.24687675,0.000138,2]
[331884587,1720816240928,-35098.51312325,0.000138,2]
[331884589,1720816240937,-250.27753742,0.00013805,2]
[331884591,1720816240946,-301.19357159,0.00013808,2]
[331884593,1720816240955,-241.4064925,0.00013815,2]
[331884595,1720816240964,-150.0,0.00013821,2]
[331884597,1720816240974,-164.34574227,0.00013825,2]
[331884599,1720816240983,-150.0,0.00013832,2]
[331884601,1720816240992,-150.0,0.00013838,2]
[331884603,1720816241004,-15869.7484578,0.00013839,2]
[331884605,1720816241014,-509.37032,0.0001384,2]
[331884607,1720816241024,-20888.69472003,0.0001384,2]
[331884609,1720816241037,-347.78074878,0.0001384,2]
[331884614,1720816241070,-10503.02144689,0.0001384,2]
[331884616,1720816241079,-7934.87422892,0.00013844,2]
[331884618,1720816241088,-7934.87422892,0.00013849,2]
[331884620,1720816241099,-500.0,0.00013849,2]
[331884622,1720816241108,-500.0,0.00013849,2]
[331884624,1720816241117,-500.0,0.00013849,2]
[331884625,1720816241127,-571.42,0.00013849,2]
[331884628,1720816241136,-500.0,0.00013849,2]
[331884630,1720816241146,-500.0,0.00013849,2]
[331884632,1720816241155,-500.0,0.00013849,2]
[331884633,1720816241165,-500.0,0.00013849,2]
[331884636,1720816241183,-500.0,0.00013849,2]
[331884639,1720816241194,-600.56,0.00013849,2]
[331884641,1720816241204,-500.0,0.00013849,2]
[331884643,1720816241215,-500.0,0.00013849,2]
[331884645,1720816241225,-747.64,0.00013849,2]
[331884647,1720816241234,-726.22,0.00013849,2]
[331884649,1720816241244,-500.0,0.00013849,2]
[331884651,1720816241254,-500.0,0.00013849,2]
[331884653,1720816241264,-500.0,0.00013849,2]
[331884655,1720816241274,-500.0,0.00013849,2]
[331884657,1720816241284,-500.0,0.00013849,2]
[331884659,1720816241294,-500.0,0.00013849,2]
[331884661,1720816241305,-492.34659626,0.00013849,2]
[331884663,1720816241315,-299.37,0.00013849,2]
[331884665,1720816241324,-500.0,0.00013849,2]
[331884667,1720816241335,-500.0,0.00013849,2]
[331884669,1720816241351,-500.0,0.00013849,2]
[331884671,1720816241360,-500.0,0.00013849,2]
[331884673,1720816241370,-574.79,0.00013849,2]
[331884676,1720816241379,-500.0,0.00013849,2]
[331884678,1720816241389,-500.0,0.00013849,2]
[331884680,1720816241399,-500.0,0.00013849,2]
[331884682,1720816241408,-768.05,0.00013849,2]
[331884684,1720816241418,-500.0,0.00013849,2]
[331884686,1720816241427,-662.69,0.00013849,2]
[331884688,1720816241438,-500.0,0.00013849,2]
[331884690,1720816241448,-500.0,0.00013849,2]
[331884692,1720816241458,-500.0,0.00013849,2]
[331884694,1720816241469,-765.29,0.00013849,2]
[331884696,1720816241479,-507.25,0.00013849,2]
[331884698,1720816241488,-726.72,0.00013849,2]
[331884700,1720816241497,-500.0,0.00013849,2]
[331884702,1720816241507,-500.0,0.00013849,2]
[331884704,1720816241517,-800.6,0.00013849,2]
[331884706,1720816241528,-500.0,0.00013849,2]
[331884708,1720816241539,-744.62,0.00013849,2]
[331884710,1720816241548,-500.0,0.00013849,2]
[331884713,1720816241559,-500.0,0.00013849,2]
[331884715,1720816241569,-772.9,0.00013849,2]
[331884717,1720816241578,-500.0,0.00013849,2]
[331884719,1720816241587,-500.0,0.00013849,2]
[331884721,1720816241598,-850.33,0.00013849,2]
[331884723,1720816241608,-529.97,0.00013849,2]
[331884725,1720816241618,-500.0,0.00013849,2]
[331884727,1720816241627,-500.0,0.00013849,2]
[331884729,1720816241636,-500.0,0.00013849,2]
[331884731,1720816241646,-500.0,0.00013849,2]
[331884733,1720816241655,-500.0,0.00013849,2]
[331884735,1720816241664,-500.0,0.00013849,2]
[331884737,1720816241673,-500.0,0.00013849,2]
[331884739,1720816241682,-500.0,0.00013849,2]
[331884741,1720816241691,-646.63,0.00013849,2]
[331884743,1720816241701,-500.0,0.00013849,2]
[331884745,1720816241710,-632.28,0.00013849,2]
[331884747,1720816241719,-500.0,0.00013849,2]
[331884749,1720816241729,-500.0,0.00013849,2]
[331884751,1720816241738,-500.0,0.00013849,2]
[331884753,1720816241747,-500.0,0.00013849,2]
[331884755,1720816241756,-500.0,0.00013849,2]
[331884757,1720816241766,-500.0,0.00013849,2]
[331884759,1720816241776,-500.0,0.00013849,2]
[331884761,1720816241786,-600.67,0.00013849,2]
[331884763,1720816241800,-67359.90965406,0.0001385,2]
[331884765,1720816241810,-250.27753742,0.00013853,2]
[331884767,1720816241820,-500.0,0.00013854,2]
[331884769,1720816241829,-500.0,0.00013854,2]
[331884771,1720816241838,-500.0,0.00013854,2]
[331884773,1720816241847,-500.0,0.00013854,2]
[331884775,1720816241856,-500.0,0.00013854,2]
[331884777,1720816241866,-500.0,0.00013854,2]
[331884779,1720816241875,-500.0,0.00013854,2]
[331884781,1720816241884,-500.0,0.00013854,2]
[331884783,1720816241894,-500.0,0.00013854,2]
[331884785,1720816241904,-600.9,0.00013854,2]
[331884787,1720816241914,-648.57,0.00013854,2]
[331884789,1720816241923,-500.0,0.00013854,2]
[331884792,1720816241933,-500.0,0.00013854,2]
[331884794,1720816241943,-500.0,0.00013854,2]
[331884795,1720816241952,-500.0,0.00013854,2]
[331884797,1720816241962,-500.0,0.00013854,2]
[331884800,1720816241972,-500.0,0.00013854,2]
[331884802,1720816241981,-500.0,0.00013854,2]
[331884803,1720816241990,-500.0,0.00013854,2]
[331884805,1720816242000,-500.0,0.00013854,2]
[331884807,1720816242010,-500.0,0.00013854,2]
[331884809,1720816242020,-500.0,0.00013854,2]
[331884811,1720816242029,-500.0,0.00013854,2]
[331884813,1720816242039,-841.45,0.00013854,2]
[331884815,1720816242048,-500.0,0.00013854,2]
[331884817,1720816242058,-1452.98,0.00013854,2]
[331884819,1720816242068,-904.0,0.00013854,2]
[331884821,1720816242078,-500.0,0.00013854,2]
[331884823,1720816242087,-500.0,0.00013854,2]
[331884825,1720816242097,-1020.38,0.00013854,2]
[331884827,1720816242107,-500.0,0.00013854,2]
[331884830,1720816242117,-527.33,0.00013854,2]
[331884832,1720816242127,-500.0,0.00013854,2]
[331884834,1720816242136,-500.0,0.00013854,2]
[331884836,1720816242148,-1254.68,0.00013854,2]
[331884838,1720816242157,-500.0,0.00013854,2]
[331884840,1720816242167,-500.0,0.00013854,2]
[331884842,1720816242176,-362.85478935,0.00013854,2]
[331884844,1720816242186,-500.0,0.00013854,2]
[331884846,1720816242195,-500.0,0.00013854,2]
[331884848,1720816242204,-500.0,0.00013854,2]
[331884850,1720816242214,-500.0,0.00013854,2]
[331884851,1720816242224,-577.72,0.00013854,2]
[331884853,1720816242233,-500.0,0.00013854,2]
[331884856,1720816242243,-500.0,0.00013854,2]
[331884858,1720816242252,-525.35,0.00013854,2]
[331884860,1720816242262,-500.0,0.00013854,2]
[331884862,1720816242272,-500.0,0.00013854,2]
[331884863,1720816242281,-500.0,0.00013854,2]
[331884865,1720816242291,-500.0,0.00013854,2]
[331884867,1720816242299,-500.0,0.00013854,2]
[331884870,1720816242309,-241.4064925,0.00013857,2]
[331884871,1720816242319,-150.0,0.00013858,2]
[331884875,1720816242328,-169.07,0.00013859,2]
[331884878,1720816242338,-1004.81,0.00013859,2]
[331884881,1720816242347,-500.0,0.00013859,2]
[331884883,1720816242356,-523.01,0.00013859,2]
[331884886,1720816242365,-500.0,0.00013859,2]
[331884888,1720816242374,-899.22,0.00013859,2]
[331884891,1720816242383,-500.0,0.00013859,2]
[331884894,1720816242392,-1671.18,0.00013859,2]
[331884896,1720816242401,-500.0,0.00013859,2]
[331884898,1720816242410,-500.0,0.00013859,2]
[331884900,1720816242419,-500.0,0.00013859,2]
[331884902,1720816242429,-671.63,0.00013859,2]
[331884904,1720816242437,-500.0,0.00013859,2]
[331884906,1720816242447,-500.0,0.00013859,2]
[331884908,1720816242456,-4328.2,0.00013859,2]
[331884910,1720816242465,-921.56,0.00013859,2]
[331884912,1720816242474,-150.0,0.00013861,2]
[331884914,1720816242483,-164.34574227,0.00013862,2]
[331884916,1720816242493,-7934.87422892,0.00013866,2]
[331884918,1720816242502,-31739.4969157,0.00013868,2]
[331884919,1720816242511,-7934.87422892,0.0001387,2]
[331884921,1720816242520,-7934.87422892,0.0001387,2]
[331884923,1720816242530,-301.19357159,0.00013871,2]
[331884925,1720816242539,-150.0,0.00013873,2]
[331884927,1720816242548,-180.02801106,0.00013875,2]
[331884929,1720816242558,-8063.2126,0.00013876,2]
[331884931,1720816242567,-1000.0,0.00013876,2]
[331884933,1720816242575,-500.0,0.00013878,2]
[331884935,1720816242585,-500.0,0.00013878,2]
[331884937,1720816242594,-500.0,0.00013878,2]
[331884939,1720816242604,-500.0,0.00013878,2]
[331884941,1720816242613,-301.24,0.00013878,2]
[331884943,1720816242622,-500.0,0.00013878,2]
[331884946,1720816242632,-500.0,0.00013878,2]
[331884963,1720816242760,-416.1059591,0.00013878,2]
[331884965,1720816242769,-500.0,0.00013878,2]
[331884967,1720816242778,-500.0,0.00013878,2]
[331884969,1720816242791,-500.0,0.00013878,2]
[331884971,1720816242800,-204.7470142,0.00013878,2]
[331884973,1720816242809,-500.0,0.00013878,2]
[331884975,1720816242818,-500.0,0.00013878,2]
[331884977,1720816242827,-500.0,0.00013878,2]
[331884979,1720816242837,-500.0,0.00013878,2]
[331884981,1720816242847,-500.0,0.00013878,2]
[331884983,1720816242856,-500.0,0.00013878,2]
[331884985,1720816242865,-340.04918978,0.00013878,2]
[331884987,1720816242876,-500.0,0.00013878,2]
[331884989,1720816242886,-500.0,0.00013878,2]
[331884991,1720816242895,-500.0,0.00013878,2]
[331884993,1720816242904,-500.0,0.00013878,2]
[331884995,1720816242913,-500.0,0.00013878,2]
[331884997,1720816242922,-500.0,0.00013878,2]
[331884999,1720816242938,-520.23,0.00013878,2]
[331885001,1720816242950,-509.09,0.00013878,2]
[331885004,1720816242962,-500.0,0.00013878,2]
[331885006,1720816242974,-500.0,0.00013878,2]
[331885008,1720816242985,-500.0,0.00013878,2]
[331885010,1720816242997,-500.0,0.00013878,2]
[331885012,1720816243008,-500.0,0.00013878,2]
[331885014,1720816243018,-500.0,0.00013878,2]
[331885016,1720816243029,-546.99,0.00013878,2]
[331885018,1720816243040,-500.0,0.00013878,2]
[331885020,1720816243051,-500.0,0.00013878,2]
[331885022,1720816243061,-500.0,0.00013878,2]
[331885024,1720816243071,-500.0,0.00013878,2]
[331885026,1720816243081,-500.0,0.00013878,2]
[331885028,1720816243091,-500.0,0.00013878,2]
[331885030,1720816243102,-500.0,0.00013878,2]
[331885032,1720816243113,-500.0,0.00013878,2]
[331885035,1720816243123,-500.0,0.00013878,2]
[331885038,1720816243134,-500.0,0.00013878,2]
[331885041,1720816243144,-500.0,0.00013878,2]
[331885043,1720816243155,-500.0,0.00013878,2]
[331885045,1720816243165,-500.0,0.00013878,2]
[331885047,1720816243175,-500.0,0.00013878,2]
[331885049,1720816243186,-500.0,0.00013878,2]
[331885051,1720816243197,-500.0,0.00013878,2]
[331885053,1720816243207,-500.0,0.00013878,2]
[331885055,1720816243218,-500.0,0.00013878,2]
[331885057,1720816243229,-497.57044136,0.00013878,2]
[331885059,1720816243239,-500.0,0.00013878,2]
[331885061,1720816243249,-500.0,0.00013878,2]
[331885063,1720816243258,-500.0,0.00013878,2]
[331885065,1720816243268,-500.0,0.00013878,2]
[331885067,1720816243278,-170.68461021,0.00013878,2]
[331885069,1720816243288,-500.0,0.00013878,2]
[331885071,1720816243298,-500.0,0.00013878,2]
[331885073,1720816243308,-500.0,0.00013878,2]
[331885075,1720816243317,-500.0,0.00013878,2]
[331885077,1720816243326,-500.0,0.00013878,2]
[331885079,1720816243336,-500.0,0.00013878,2]
[331885081,1720816243345,-500.0,0.00013878,2]
[331885083,1720816243355,-500.0,0.00013878,2]
[331885085,1720816243364,-500.0,0.00013878,2]
[331885087,1720816243373,-500.0,0.00013878,2]
[331885088,1720816243382,-500.0,0.00013878,2]
[331885091,1720816243391,-500.0,0.00013878,2]
[331885093,1720816243401,-500.0,0.00013878,2]
[331885095,1720816243410,-710.58,0.00013878,2]
[331885097,1720816243419,-228.01908745,0.00013878,2]
[331885099,1720816243428,-500.0,0.00013878,2]
[331885101,1720816243437,-500.0,0.00013878,2]
[331885103,1720816243447,-500.0,0.00013878,2]
[331885105,1720816243456,-500.0,0.00013878,2]
[331885107,1720816243465,-411.45289015,0.00013878,2]
[331885109,1720816243475,-520.68135982,0.00013878,2]
[331885111,1720816243483,-500.0,0.00013878,2]
[331885113,1720816243492,-500.0,0.00013878,2]
[331885114,1720816243501,-204.5707326,0.00013878,2]
[331885116,1720816243510,-500.0,0.00013878,2]
[331885118,1720816243520,-500.0,0.00013878,2]
[331885120,1720816243529,-500.0,0.00013878,2]
[331885122,1720816243539,-500.0,0.00013878,2]
[331885124,1720816243549,-500.0,0.00013878,2]
[331885126,1720816243558,-500.0,0.00013878,2]
[331885128,1720816243567,-500.0,0.00013878,2]
[331885130,1720816243577,-500.0,0.00013878,2]
[331885132,1720816243586,-500.0,0.00013878,2]
[331885134,1720816243595,-500.0,0.00013878,2]
[331885136,1720816243604,-500.0,0.00013878,2]
[331885138,1720816243614,-500.0,0.00013878,2]
[331885140,1720816243623,-254.96318398,0.00013878,2]
[331885142,1720816243634,-500.0,0.00013878,2]
[331885144,1720816243643,-500.0,0.00013878,2]
[331885146,1720816243652,-500.0,0.00013878,2]
[331885148,1720816243661,-500.0,0.00013878,2]
[331885150,1720816243670,-500.0,0.00013878,2]
[331885152,1720816243679,-500.0,0.00013878,2]
[331885154,1720816243688,-500.0,0.00013878,2]
[331885156,1720816243697,-500.0,0.00013878,2]
[331885158,1720816243706,-500.0,0.00013878,2]
[331885160,1720816243715,-184.57861071,0.00013878,2]
[331885161,1720816243725,-580.2,0.00013878,2]
[331885162,1720816243735,-944.22,0.00013878,2]
[331885163,1720816243744,-500.0,0.00013878,2]
[331885164,1720816243754,-752.67,0.00013878,2]
[331885165,1720816243763,-505.0,0.00013878,2]
[331885166,1720816243772,-500.0,0.00013878,2]
[331885167,1720816243782,-500.0,0.00013878,2]
[331885168,1720816243792,-500.0,0.00013878,2]
[331885169,1720816243803,-500.0,0.00013878,2]